[Event "Early-Titled-Tuesday-Blitz-March-12-2024"]
[Site "Chess.com"]
[Date "2024.03.12"]
[Round "4"]
[White "Skatchkov_V"]
[Black "MatthewG-p4p"]
[Result "0-1"]
[WhiteElo "2674"]
[BlackElo "2874"]
[TimeControl "180+1"]
[EndTime "8:41:28 PDT"]
[Termination "MatthewG-p4p won by resignation"]

1. d4 {[%clk 0:02:50.7]} 1... Nf6 {[%clk 0:03:00]} 2. c4 {[%clk 0:02:50.6]} 2...
c5 {[%clk 0:03:00.7]} 3. d5 {[%clk 0:02:50.6]} 3... e6 {[%clk 0:03:01.5]} 4. Nc3
{[%clk 0:02:50.5]} 4... exd5 {[%clk 0:03:02.1]} 5. cxd5 {[%clk 0:02:51.4]} 5...
d6 {[%clk 0:03:03]} 6. Nf3 {[%clk 0:02:51.9]} 6... g6 {[%clk 0:03:03.9]} 7. Bf4
{[%clk 0:02:44.7]} 7... Bg7 {[%clk 0:03:04.5]} 8. Qa4+ {[%clk 0:02:44.7]} 8...
Bd7 {[%clk 0:03:03.3]} 9. Qb3 {[%clk 0:02:45]} 9... b5 {[%clk 0:03:04]} 10. Bxd6
{[%clk 0:02:45.1]} 10... Qb6 {[%clk 0:03:04.1]} 11. Be5 {[%clk 0:02:45.6]} 11...
O-O {[%clk 0:03:04.2]} 12. e3 {[%clk 0:02:45.3]} 12... c4 {[%clk 0:03:04.8]} 13.
Qd1 {[%clk 0:02:45.6]} 13... b4 {[%clk 0:03:03.3]} 14. Na4 {[%clk 0:02:45.8]}
14... Qa5 {[%clk 0:02:49.6]} 15. b3 {[%clk 0:02:45.8]} 15... Bxa4 {[%clk
0:02:08.5]} 16. bxa4 {[%clk 0:02:40.7]} 16... c3 {[%clk 0:02:00.6]} 17. Bb5
{[%clk 0:02:04.5]} 17... a6 {[%clk 0:01:40.1]} 18. Bc4 {[%clk 0:02:03.6]} 18...
Nbd7 {[%clk 0:01:38.5]} 19. Bd4 {[%clk 0:01:58.6]} 19... Nb6 {[%clk 0:01:34.8]}
20. Bb3 {[%clk 0:01:38.1]} 20... Nbxd5 {[%clk 0:01:32.5]} 21. Bxd5 {[%clk
0:01:37.7]} 21... Qxd5 {[%clk 0:01:26.6]} 22. Bxf6 {[%clk 0:01:37.9]} 22...
Qxd1+ {[%clk 0:01:26.4]} 23. Kxd1 {[%clk 0:01:38.8]} 23... Bxf6 {[%clk
0:01:26.1]} 24. Kc2 {[%clk 0:01:39.7]} 24... Rfc8 {[%clk 0:01:09.5]} 25. Rhd1
{[%clk 0:01:33.3]} 25... Rc6 {[%clk 0:01:09.7]} 26. Rd5 {[%clk 0:01:32.4]} 26...
Rb8 {[%clk 0:01:05.8]} 27. Rad1 {[%clk 0:01:25.8]} 27... Be7 {[%clk 0:00:57.9]}
28. Rd7 {[%clk 0:01:13.6]} 28... Kf8 {[%clk 0:00:40.9]} 29. Ne5 {[%clk
0:00:48.7]} 29... Re6 {[%clk 0:00:37.8]} 30. R1d5 {[%clk 0:00:36.3]} 30... Ke8
{[%clk 0:00:30.9]} 31. Ra7 {[%clk 0:00:27]} 31... Rc8 {[%clk 0:00:13]} 32. Nd3
{[%clk 0:00:20]} 32... Rd8 {[%clk 0:00:07.3]} 33. Rxd8+ {[%clk 0:00:16.3]} 33...
Kxd8 {[%clk 0:00:08.2]} 34. Rb7 {[%clk 0:00:13.9]} 34... Kc8 {[%clk 0:00:06.4]}
35. Ra7 {[%clk 0:00:10.5]} 35... Kb8 {[%clk 0:00:06.3]} 36. Rd7 {[%clk
0:00:10.6]} 36... Kc8 {[%clk 0:00:06.5]} 37. Ra7 {[%clk 0:00:10.8]} 37... Kb8
{[%clk 0:00:03.9]} 38. Rd7 {[%clk 0:00:10.9]} 38... g5 {[%clk 0:00:04.6]} 39.
Rd5 {[%clk 0:00:06.8]} 39... h6 {[%clk 0:00:04.2]} 40. Rf5 {[%clk 0:00:07.1]}
40... f6 {[%clk 0:00:04.2]} 41. h4 {[%clk 0:00:06.8]} 41... Kc7 {[%clk
0:00:04.2]} 42. h5 {[%clk 0:00:07.4]} 42... Re4 {[%clk 0:00:03.3]} 43. g3 {[%clk
0:00:06.7]} 43... Kb6 {[%clk 0:00:03.4]} 44. Rd5 {[%clk 0:00:06.9]} 44... Kc6
{[%clk 0:00:03.6]} 45. Ra5 {[%clk 0:00:06.1]} 45... Kb7 {[%clk 0:00:03.2]} 46.
Rd5 {[%clk 0:00:06.4]} 46... Kc6 {[%clk 0:00:03.7]} 47. Ra5 {[%clk 0:00:06.3]}
47... Kb6 {[%clk 0:00:04.5]} 48. Rd5 {[%clk 0:00:06.9]} 48... Re6 {[%clk
0:00:05.3]} 49. Kb3 {[%clk 0:00:06.1]} 49... Kc6 {[%clk 0:00:05.3]} 50. Rd4
{[%clk 0:00:06]} 50... a5 {[%clk 0:00:05.9]} 51. Rc4+ {[%clk 0:00:06.2]} 51...
Kd5 {[%clk 0:00:06.6]} 52. Rd4+ {[%clk 0:00:06.8]} 52... Kc6 {[%clk 0:00:07.4]}
53. Kc2 {[%clk 0:00:07.4]} 53... Bd6 {[%clk 0:00:07.3]} 54. Rc4+ {[%clk
0:00:07.9]} 54... Kd7 {[%clk 0:00:07.8]} 55. Rd4 {[%clk 0:00:08.5]} 55... Ke7
{[%clk 0:00:08.5]} 56. Rd5 {[%clk 0:00:08.8]} 56... Bc7 {[%clk 0:00:08.3]} 57.
Nc5 {[%clk 0:00:08.7]} 57... Rc6 {[%clk 0:00:08.5]} 58. Nb3 {[%clk 0:00:06.4]}
58... Ra6 {[%clk 0:00:08.5]} 59. Rc5 {[%clk 0:00:06.3]} 59... Kd6 {[%clk
0:00:07]} 60. Rb5 {[%clk 0:00:06.9]} 60... Bb6 {[%clk 0:00:06.1]} 61. Rf5 {[%clk
0:00:06.2]} 61... Ke6 {[%clk 0:00:06.3]} 62. Rb5 {[%clk 0:00:06.5]} 62... f5
{[%clk 0:00:06.7]} 63. Kd3 {[%clk 0:00:07]} 63... Kf6 {[%clk 0:00:06.9]} 64. Rd5
{[%clk 0:00:07.1]} 64... g4 {[%clk 0:00:07.3]} 65. Rd6+ {[%clk 0:00:07.2]} 65...
Kg5 {[%clk 0:00:07.9]} 66. Rg6+ {[%clk 0:00:07.4]} 66... Kxh5 {[%clk 0:00:08.1]}
67. Re6 {[%clk 0:00:06.9]} 67... Kg5 {[%clk 0:00:08.2]} 68. Nc5 {[%clk
0:00:07.4]} 68... Ra8 {[%clk 0:00:05.2]} 69. Rxb6 {[%clk 0:00:07.3]} 69... Rd8+
{[%clk 0:00:06.1]} 70. Kc2 {[%clk 0:00:02.6]} 70... Rd2+ {[%clk 0:00:07]} 71.
Kc1 {[%clk 0:00:03.2]} 71... Rxf2 {[%clk 0:00:05.7]} 72. Ne6+ {[%clk 0:00:03.8]}
72... Kf6 {[%clk 0:00:06.3]} 73. Nf4+ {[%clk 0:00:04.5]} 73... Kf7 {[%clk
0:00:06.3]} 74. Rxh6 {[%clk 0:00:04.1]} 74... Rxa2 {[%clk 0:00:06.7]} 75. Rh5
{[%clk 0:00:04.3]} 75... Rxa4 {[%clk 0:00:06.7]} 76. Rxf5+ {[%clk 0:00:04.7]}
76... Kg7 {[%clk 0:00:06.9]} 77. Rg5+ {[%clk 0:00:05.2]} 77... Kf6 {[%clk
0:00:07.8]} 78. Rf5+ {[%clk 0:00:05.9]} 78... Kxf5 {[%clk 0:00:07.8]} 0-1

[Event "Early-Titled-Tuesday-Blitz-March-12-2024"]
[Site "Chess.com"]
[Date "2024.03.12"]
[Round "4"]
[White "suspiciumchess"]
[Black "santosalberto1987"]
[Result "0-1"]
[WhiteElo "2405"]
[BlackElo "2571"]
[TimeControl "180+1"]
[EndTime "8:41:42 PDT"]
[Termination "santosalberto1987 won by checkmate"]

1. c4 {[%clk 0:02:56.3]} 1... c6 {[%clk 0:02:59.2]} 2. Nf3 {[%clk 0:02:52.3]}
2... d5 {[%clk 0:02:59.3]} 3. g3 {[%clk 0:02:52.6]} 3... Nf6 {[%clk 0:02:59.2]}
4. Bg2 {[%clk 0:02:52.9]} 4... Bg4 {[%clk 0:02:59.6]} 5. O-O {[%clk 0:02:53.2]}
5... Bxf3 {[%clk 0:02:58.3]} 6. Bxf3 {[%clk 0:02:54.1]} 6... e6 {[%clk
0:02:58.8]} 7. d4 {[%clk 0:02:48.6]} 7... Nbd7 {[%clk 0:02:55.8]} 8. b3 {[%clk
0:02:35.9]} 8... Bd6 {[%clk 0:02:53.3]} 9. Nc3 {[%clk 0:02:35.8]} 9... Qe7
{[%clk 0:02:51.7]} 10. e4 {[%clk 0:02:31.6]} 10... dxe4 {[%clk 0:02:49.6]} 11.
Nxe4 {[%clk 0:02:32.5]} 11... Nxe4 {[%clk 0:02:47.9]} 12. Bxe4 {[%clk
0:02:33.4]} 12... O-O {[%clk 0:02:44.4]} 13. Bb2 {[%clk 0:02:25.5]} 13... Ba3
{[%clk 0:02:41]} 14. Bc3 {[%clk 0:02:20.7]} 14... Bb4 {[%clk 0:02:40.5]} 15. Bb2
{[%clk 0:02:14.2]} 15... Ba3 {[%clk 0:02:40.5]} 16. Bc3 {[%clk 0:02:14.6]} 16...
Nf6 {[%clk 0:02:40.8]} 17. Bf3 {[%clk 0:02:14.3]} 17... a5 {[%clk 0:02:40.7]}
18. Re1 {[%clk 0:02:05.6]} 18... Rfd8 {[%clk 0:02:35.6]} 19. Qc2 {[%clk
0:02:01.3]} 19... Qc7 {[%clk 0:02:27.1]} 20. Qe2 {[%clk 0:01:19]} 20... Bb4
{[%clk 0:02:23.3]} 21. Qe3 {[%clk 0:01:00.9]} 21... Bxc3 {[%clk 0:02:18.5]} 22.
Qxc3 {[%clk 0:01:00.5]} 22... a4 {[%clk 0:02:18.9]} 23. bxa4 {[%clk 0:00:51.6]}
23... Rxa4 {[%clk 0:02:15.5]} 24. Reb1 {[%clk 0:00:36.1]} 24... Rda8 {[%clk
0:01:54.4]} 25. a3 {[%clk 0:00:30.7]} 25... R8a7 {[%clk 0:01:49.2]} 26. Rb3
{[%clk 0:00:30.4]} 26... Qd6 {[%clk 0:01:47]} 27. Kg2 {[%clk 0:00:19.8]} 27...
h6 {[%clk 0:01:46]} 28. c5 {[%clk 0:00:18.8]} 28... Qc7 {[%clk 0:01:34.9]} 29.
Rab1 {[%clk 0:00:18.5]} 29... Qd7 {[%clk 0:01:26.1]} 30. Qb2 {[%clk 0:00:17.2]}
30... Qxd4 {[%clk 0:01:07.7]} 31. Qxd4 {[%clk 0:00:16.5]} 31... Rxd4 {[%clk
0:01:07.2]} 32. Rxb7 {[%clk 0:00:17.4]} 32... Rxa3 {[%clk 0:00:52.3]} 33. R7b6
{[%clk 0:00:11]} 33... Rd2 {[%clk 0:00:38.1]} 34. Bxc6 {[%clk 0:00:04.2]} 34...
Rc3 {[%clk 0:00:32.8]} 35. R6b5 {[%clk 0:00:02.6]} 35... Rdc2 {[%clk 0:00:30.8]}
36. Bf3 {[%clk 0:00:02.8]} 36... Rxc5 {[%clk 0:00:29.8]} 37. Rb8+ {[%clk
0:00:03.2]} 37... Rc8 {[%clk 0:00:27.9]} 38. R1b7 {[%clk 0:00:03]} 38... Rxb8
{[%clk 0:00:26.7]} 39. Rxb8+ {[%clk 0:00:03.9]} 39... Kh7 {[%clk 0:00:27.1]} 40.
Bd1 {[%clk 0:00:04.2]} 40... Rd2 {[%clk 0:00:26.5]} 41. Bf3 {[%clk 0:00:02.8]}
41... g5 {[%clk 0:00:25.1]} 42. Rb7 {[%clk 0:00:03.3]} 42... Kg7 {[%clk
0:00:24.8]} 43. h3 {[%clk 0:00:03.7]} 43... h5 {[%clk 0:00:22.3]} 44. Bc6 {[%clk
0:00:04]} 44... Rc2 {[%clk 0:00:18.2]} 45. Rb6 {[%clk 0:00:02.3]} 45... g4
{[%clk 0:00:17.3]} 46. hxg4 {[%clk 0:00:02.4]} 46... Nxg4 {[%clk 0:00:16.9]} 47.
Bb7 {[%clk 0:00:03.3]} 47... Rxf2+ {[%clk 0:00:16.6]} 48. Kg1 {[%clk 0:00:03.5]}
48... Rd2 {[%clk 0:00:14.6]} 49. Rb5 {[%clk 0:00:04.1]} 49... Nf6 {[%clk
0:00:14]} 50. Bf3 {[%clk 0:00:03.4]} 50... Rd3 {[%clk 0:00:13.4]} 51. Kf2 {[%clk
0:00:01.9]} 51... Kg6 {[%clk 0:00:12]} 52. Be2 {[%clk 0:00:01.7]} 52... Ra3
{[%clk 0:00:11.7]} 53. Rc5 {[%clk 0:00:02.2]} 53... Ra7 {[%clk 0:00:10.5]} 54.
Rb5 {[%clk 0:00:02.4]} 54... Rd7 {[%clk 0:00:10.6]} 55. Rb4 {[%clk 0:00:02.8]}
55... Rd5 {[%clk 0:00:10.7]} 56. Bf3 {[%clk 0:00:03.2]} 56... Rf5 {[%clk
0:00:10.6]} 57. Kg2 {[%clk 0:00:03.5]} 57... Kg5 {[%clk 0:00:10.3]} 58. Be2
{[%clk 0:00:04.1]} 58... Ng4 {[%clk 0:00:10.4]} 59. Bf3 {[%clk 0:00:02.9]} 59...
Ne3+ {[%clk 0:00:09.9]} 60. Kf2 {[%clk 0:00:03]} 60... Nd5 {[%clk 0:00:08.7]}
61. Rc4 {[%clk 0:00:02.6]} 61... Nf6 {[%clk 0:00:08.2]} 62. Kg2 {[%clk
0:00:02.9]} 62... Ng4 {[%clk 0:00:08.3]} 63. Be2 {[%clk 0:00:03.5]} 63... Rf2+
{[%clk 0:00:08.2]} 64. Kg1 {[%clk 0:00:04.1]} 64... Rxe2 {[%clk 0:00:08.4]} 65.
Rf4 {[%clk 0:00:04.5]} 65... f5 {[%clk 0:00:08]} 66. Rf3 {[%clk 0:00:04.2]}
66... e5 {[%clk 0:00:07.8]} 67. Rf1 {[%clk 0:00:04.4]} 67... e4 {[%clk 0:00:07]}
68. Rf4 {[%clk 0:00:04.5]} 68... Ne3 {[%clk 0:00:06.6]} 69. Kh1 {[%clk
0:00:03.3]} 69... Rg2 {[%clk 0:00:06.2]} 70. Rxf5+ {[%clk 0:00:02.3]} 70... Kxf5
{[%clk 0:00:06]} 71. g4+ {[%clk 0:00:02.2]} 71... Kf4 {[%clk 0:00:05.7]} 72.
gxh5 {[%clk 0:00:01.9]} 72... Rg5 {[%clk 0:00:05.4]} 73. h6 {[%clk 0:00:02.8]}
73... Rh5+ {[%clk 0:00:05.6]} 74. Kg1 {[%clk 0:00:02.7]} 74... Nf5 {[%clk
0:00:03.9]} 75. Kf2 {[%clk 0:00:03.6]} 75... Rxh6 {[%clk 0:00:03.9]} 76. Kg2
{[%clk 0:00:04.1]} 76... Ra6 {[%clk 0:00:04.4]} 77. Kh1 {[%clk 0:00:05]} 77...
e3 {[%clk 0:00:04.8]} 78. Kh2 {[%clk 0:00:05.6]} 78... Ra2+ {[%clk 0:00:04.8]}
79. Kg1 {[%clk 0:00:05.9]} 79... e2 {[%clk 0:00:04.2]} 80. Kf2 {[%clk
0:00:06.8]} 80... Nd4 {[%clk 0:00:03.1]} 81. Ke1 {[%clk 0:00:06.9]} 81... Nf3+
{[%clk 0:00:03.2]} 82. Kf2 {[%clk 0:00:07.2]} 82... e1=Q# {[%clk 0:00:03.8]} 0-1

[Event "Early-Titled-Tuesday-Blitz-March-12-2024"]
[Site "Chess.com"]
[Date "2024.03.12"]
[Round "4"]
[White "GMKrikor"]
[Black "vasblesk"]
[Result "0-1"]
[WhiteElo "2876"]
[BlackElo "2740"]
[TimeControl "180+1"]
[EndTime "8:41:58 PDT"]
[Termination "vasblesk won by resignation"]

1. Nf3 {[%clk 0:03:00.9]} 1... Nf6 {[%clk 0:02:57.7]} 2. c4 {[%clk 0:03:01]}
2... e6 {[%clk 0:02:57.4]} 3. Nc3 {[%clk 0:03:01.2]} 3... d5 {[%clk 0:02:56.7]}
4. d4 {[%clk 0:03:01.9]} 4... c6 {[%clk 0:02:54.9]} 5. Qc2 {[%clk 0:03:01]} 5...
Nbd7 {[%clk 0:02:53.3]} 6. cxd5 {[%clk 0:03:00.9]} 6... exd5 {[%clk 0:02:51.4]}
7. Bg5 {[%clk 0:03:00.8]} 7... Be7 {[%clk 0:02:45.7]} 8. e3 {[%clk 0:03:00.9]}
8... O-O {[%clk 0:02:43.6]} 9. Bd3 {[%clk 0:03:01]} 9... Re8 {[%clk 0:02:41.6]}
10. h3 {[%clk 0:02:52.7]} 10... h6 {[%clk 0:02:41.7]} 11. Bf4 {[%clk 0:02:52.8]}
11... Nf8 {[%clk 0:02:40.8]} 12. O-O {[%clk 0:02:48.5]} 12... a5 {[%clk
0:02:40.1]} 13. Ne5 {[%clk 0:02:46.2]} 13... Ne6 {[%clk 0:02:39.9]} 14. Bg3
{[%clk 0:02:40.3]} 14... Ng5 {[%clk 0:02:36.7]} 15. f4 {[%clk 0:02:13.4]} 15...
Nge4 {[%clk 0:02:34.9]} 16. Nxe4 {[%clk 0:02:09.2]} 16... Nxe4 {[%clk
0:02:35.8]} 17. Bxe4 {[%clk 0:02:06.7]} 17... dxe4 {[%clk 0:02:36.7]} 18. Qxe4
{[%clk 0:01:56.8]} 18... f6 {[%clk 0:02:31.8]} 19. Nf3 {[%clk 0:01:51.4]} 19...
Bf8 {[%clk 0:02:24]} 20. Qd3 {[%clk 0:01:50.2]} 20... Qd5 {[%clk 0:02:23.6]} 21.
Bf2 {[%clk 0:01:34.6]} 21... Bf5 {[%clk 0:02:21.7]} 22. Qb3 {[%clk 0:01:34.7]}
22... Qxb3 {[%clk 0:02:14]} 23. axb3 {[%clk 0:01:35.6]} 23... Bc2 {[%clk
0:02:13.2]} 24. Nd2 {[%clk 0:01:33.4]} 24... Bb4 {[%clk 0:02:13]} 25. Nc4 {[%clk
0:01:13.5]} 25... Bxb3 {[%clk 0:02:09.2]} 26. Rfc1 {[%clk 0:01:13.4]} 26... Ra6
{[%clk 0:02:01.6]} 27. Kf1 {[%clk 0:00:47.3]} 27... b5 {[%clk 0:01:53.4]} 28.
Na3 {[%clk 0:00:44.8]} 28... Bd2 {[%clk 0:01:47.4]} 29. Ke2 {[%clk 0:00:45.3]}
29... Bxc1 {[%clk 0:01:45.2]} 30. Rxc1 {[%clk 0:00:46.2]} 30... b4 {[%clk
0:01:33.9]} 31. Nb1 {[%clk 0:00:46.6]} 31... a4 {[%clk 0:01:32.2]} 32. Nd2
{[%clk 0:00:47.3]} 32... Bd5 {[%clk 0:01:31.3]} 33. Kd3 {[%clk 0:00:46.5]} 33...
Bxg2 {[%clk 0:01:26.6]} 34. e4 {[%clk 0:00:44.9]} 34... Bxh3 {[%clk 0:01:25.8]}
35. Ra1 {[%clk 0:00:31.9]} 35... Be6 {[%clk 0:01:22.5]} 36. f5 {[%clk
0:00:29.7]} 36... Bf7 {[%clk 0:01:21.9]} 37. Bg3 {[%clk 0:00:28.2]} 37... a3
{[%clk 0:01:13.8]} 38. Bd6 {[%clk 0:00:24.8]} 38... a2 {[%clk 0:00:47.5]} 39.
Bxb4 {[%clk 0:00:23.7]} 39... g6 {[%clk 0:00:47.6]} 40. fxg6 {[%clk 0:00:20.3]}
40... Bxg6 {[%clk 0:00:48.5]} 41. Ba3 {[%clk 0:00:20.7]} 41... f5 {[%clk
0:00:48.8]} 42. Rxa2 {[%clk 0:00:17.9]} 42... fxe4+ {[%clk 0:00:48.9]} 43. Ke3
{[%clk 0:00:18.7]} 43... Ra5 {[%clk 0:00:47.4]} 44. Ra1 {[%clk 0:00:17.1]} 44...
Rg5 {[%clk 0:00:47.4]} 45. Bd6 {[%clk 0:00:16.1]} 45... h5 {[%clk 0:00:40.9]}
46. Be5 {[%clk 0:00:14.2]} 46... Rg4 {[%clk 0:00:37.3]} 47. Ra7 {[%clk
0:00:13.5]} 47... Bh7 {[%clk 0:00:37.4]} 48. Rc7 {[%clk 0:00:11.6]} 48... Re6
{[%clk 0:00:20.4]} 49. b4 {[%clk 0:00:11.4]} 49... Bg6 {[%clk 0:00:16.9]} 50.
Rg7+ {[%clk 0:00:10.6]} 50... Kf8 {[%clk 0:00:16.6]} 51. Ra7 {[%clk 0:00:06.6]}
51... h4 {[%clk 0:00:16.9]} 52. Ra8+ {[%clk 0:00:06.8]} 52... Ke7 {[%clk
0:00:16.9]} 53. Rh8 {[%clk 0:00:07.7]} 53... Kd7 {[%clk 0:00:14]} 54. Nc4 {[%clk
0:00:04.5]} 54... Re8 {[%clk 0:00:11.3]} 55. Nb6+ {[%clk 0:00:03.5]} 55... Ke6
{[%clk 0:00:10.5]} 56. Rh6 {[%clk 0:00:03.5]} 56... Kf5 {[%clk 0:00:10.7]} 57.
Nc4 {[%clk 0:00:04.1]} 57... Kg5 {[%clk 0:00:10.8]} 58. Rh8 {[%clk 0:00:02]}
58... Rxh8 {[%clk 0:00:10.5]} 59. Bxh8 {[%clk 0:00:02.9]} 59... Rg3+ {[%clk
0:00:10.5]} 60. Kf2 {[%clk 0:00:02.8]} 60... Rf3+ {[%clk 0:00:11]} 61. Kg2
{[%clk 0:00:02.5]} 61... h3+ {[%clk 0:00:11.2]} 62. Kh2 {[%clk 0:00:03.2]} 62...
Kh4 {[%clk 0:00:10.1]} 63. Be5 {[%clk 0:00:02.6]} 63... Rf2+ {[%clk 0:00:10.3]}
64. Kg1 {[%clk 0:00:02.5]} 64... Rg2+ {[%clk 0:00:10.9]} 65. Kh1 {[%clk
0:00:02.4]} 65... Bh5 {[%clk 0:00:10.6]} 66. Ne3 {[%clk 0:00:02.9]} 66... Rg6
{[%clk 0:00:08.6]} 67. Nf5+ {[%clk 0:00:03]} 67... Kg5 {[%clk 0:00:07.3]} 68.
Ne3 {[%clk 0:00:03.8]} 68... Bf3+ {[%clk 0:00:07.9]} 69. Kh2 {[%clk 0:00:04.4]}
69... Kh4 {[%clk 0:00:08.5]} 70. b5 {[%clk 0:00:02.7]} 70... cxb5 {[%clk
0:00:07.8]} 71. d5 {[%clk 0:00:02.9]} 71... Ra6 {[%clk 0:00:05.7]} 72. Bg3+
{[%clk 0:00:01.3]} 72... Kg5 {[%clk 0:00:06.3]} 73. d6 {[%clk 0:00:02.1]} 73...
Ra2+ {[%clk 0:00:06.3]} 74. Kxh3 {[%clk 0:00:02.7]} 74... Ra7 {[%clk 0:00:06.6]}
75. Bh4+ {[%clk 0:00:02.3]} 75... Kg6 {[%clk 0:00:06.7]} 76. Be7 {[%clk
0:00:01.5]} 76... b4 {[%clk 0:00:06.5]} 77. Nc4 {[%clk 0:00:02.2]} 77... b3
{[%clk 0:00:05.9]} 78. Kg3 {[%clk 0:00:02.9]} 78... Kf5 {[%clk 0:00:05.4]} 79.
Ne3+ {[%clk 0:00:02.9]} 79... Ke6 {[%clk 0:00:05.7]} 80. Nc4 {[%clk 0:00:03.2]}
80... Rb7 {[%clk 0:00:06.3]} 81. Nb2 {[%clk 0:00:03.4]} 81... Kd5 {[%clk
0:00:06.9]} 82. Kf4 {[%clk 0:00:04]} 82... Kd4 {[%clk 0:00:07.5]} 83. Bf6+
{[%clk 0:00:04.5]} 83... Kd5 {[%clk 0:00:07.7]} 84. Be7 {[%clk 0:00:05]} 84...
Rd7 {[%clk 0:00:07.5]} 85. Ke3 {[%clk 0:00:05.2]} 85... Kc5 {[%clk 0:00:05.4]}
86. Kd2 {[%clk 0:00:04.2]} 86... Kb4 {[%clk 0:00:05.7]} 87. Bf8 {[%clk
0:00:02.7]} 87... Ka3 {[%clk 0:00:05.3]} 88. Kc3 {[%clk 0:00:03.6]} 88... e3
{[%clk 0:00:04.7]} 89. Nc4+ {[%clk 0:00:04.1]} 89... Ka2 {[%clk 0:00:05]} 90.
Nxe3 {[%clk 0:00:01.6]} 90... b2 {[%clk 0:00:04.6]} 91. Nc2 {[%clk 0:00:01.2]}
91... b1=Q {[%clk 0:00:04.3]} 92. Nb4+ {[%clk 0:00:02.1]} 92... Ka3 {[%clk
0:00:04.8]} 93. Nc2+ {[%clk 0:00:02.6]} 93... Ka4 {[%clk 0:00:05.6]} 94. Ne3
{[%clk 0:00:03.1]} 94... Qb3+ {[%clk 0:00:06.1]} 95. Kd4 {[%clk 0:00:03.6]}
95... Qb4+ {[%clk 0:00:06.3]} 96. Ke5 {[%clk 0:00:03.8]} 96... Qe4+ {[%clk
0:00:06.9]} 97. Kf6 {[%clk 0:00:04.3]} 97... Qxe3 {[%clk 0:00:07.6]} 0-1

[Event "Early-Titled-Tuesday-Blitz-March-12-2024"]
[Site "Chess.com"]
[Date "2024.03.12"]
[Round "5"]
[White "toninhojit"]
[Black "Korchmar_Vasiliy"]
[Result "0-1"]
[WhiteElo "2535"]
[BlackElo "2721"]
[TimeControl "180+1"]
[EndTime "8:49:55 PDT"]
[Termination "Korchmar_Vasiliy won by resignation"]

1. e4 {[%clk 0:03:00.9]} 1... c5 {[%clk 0:02:59.8]} 2. Nf3 {[%clk 0:03:00.3]}
2... d6 {[%clk 0:03:00.2]} 3. d4 {[%clk 0:03:00.8]} 3... cxd4 {[%clk 0:03:01.1]}
4. Nxd4 {[%clk 0:03:01.4]} 4... Nf6 {[%clk 0:03:01.7]} 5. Nc3 {[%clk 0:03:01.9]}
5... Nc6 {[%clk 0:03:02.4]} 6. Nb3 {[%clk 0:03:00]} 6... g6 {[%clk 0:03:01.8]}
7. Be3 {[%clk 0:02:59]} 7... Bg7 {[%clk 0:03:02.2]} 8. Be2 {[%clk 0:02:59.7]}
8... O-O {[%clk 0:03:02.3]} 9. Qd2 {[%clk 0:03:00.3]} 9... a5 {[%clk 0:02:57.9]}
10. a4 {[%clk 0:02:51.5]} 10... Nb4 {[%clk 0:02:57.1]} 11. Rd1 {[%clk 0:02:49]}
11... Ng4 {[%clk 0:02:51.4]} 12. Bxg4 {[%clk 0:02:43.7]} 12... Bxg4 {[%clk
0:02:52.3]} 13. f3 {[%clk 0:02:42.3]} 13... Be6 {[%clk 0:02:53]} 14. Bd4 {[%clk
0:02:42.9]} 14... Bxb3 {[%clk 0:02:50.2]} 15. Bxg7 {[%clk 0:02:40.2]} 15...
Nxc2+ {[%clk 0:02:49.7]} 16. Kf2 {[%clk 0:02:24.9]} 16... Kxg7 {[%clk
0:02:48.7]} 17. h4 {[%clk 0:02:25.5]} 17... Qb6+ {[%clk 0:02:47.1]} 18. Kg3
{[%clk 0:02:24.3]} 18... Qe3 {[%clk 0:02:47.6]} 19. h5 {[%clk 0:02:20.3]} 19...
Qxd2 {[%clk 0:02:46]} 20. Rxd2 {[%clk 0:02:21.2]} 20... Nb4 {[%clk 0:02:41.7]}
0-1

[Event "Early-Titled-Tuesday-Blitz-March-12-2024"]
[Site "Chess.com"]
[Date "2024.03.12"]
[Round "5"]
[White "amylazy"]
[Black "UnTucopalaTimba"]
[Result "1-0"]
[WhiteElo "2421"]
[BlackElo "1998"]
[TimeControl "180+1"]
[EndTime "8:50:28 PDT"]
[Termination "amylazy won by resignation"]

1. d4 {[%clk 0:02:43.3]} 1... Nf6 {[%clk 0:02:56.4]} 2. Nf3 {[%clk 0:02:42.1]}
2... e6 {[%clk 0:02:55.3]} 3. e3 {[%clk 0:02:41.7]} 3... d5 {[%clk 0:02:52.8]}
4. Bd3 {[%clk 0:02:42.3]} 4... c5 {[%clk 0:02:49.5]} 5. O-O {[%clk 0:02:42.5]}
5... Nc6 {[%clk 0:02:47.1]} 6. b3 {[%clk 0:02:42.9]} 6... Bd6 {[%clk 0:02:41.8]}
7. Bb2 {[%clk 0:02:43.2]} 7... O-O {[%clk 0:02:38.4]} 8. Nbd2 {[%clk 0:02:43.2]}
8... Re8 {[%clk 0:02:34]} 9. Ne5 {[%clk 0:02:41.3]} 9... Qc7 {[%clk 0:02:23.4]}
10. f4 {[%clk 0:02:39.3]} 10... cxd4 {[%clk 0:02:20.7]} 11. exd4 {[%clk
0:02:39.1]} 11... Nd7 {[%clk 0:02:14.8]} 12. Bxh7+ {[%clk 0:02:32.2]} 12... Kxh7
{[%clk 0:02:13.9]} 13. Qh5+ {[%clk 0:02:32.4]} 13... Kg8 {[%clk 0:02:13.5]} 14.
Qxf7+ {[%clk 0:02:32.7]} 14... Kh8 {[%clk 0:02:12.7]} 15. Qxe8+ {[%clk
0:02:32.1]} 15... Kh7 {[%clk 0:02:12.5]} 16. Qg6+ {[%clk 0:02:30]} 16... Kg8
{[%clk 0:02:09]} 17. Qf7+ {[%clk 0:02:28.6]} 17... Kh7 {[%clk 0:02:08.8]} 18.
Rf3 {[%clk 0:02:28.4]} 1-0

[Event "Early-Titled-Tuesday-Blitz-March-12-2024"]
[Site "Chess.com"]
[Date "2024.03.12"]
[Round "5"]
[White "LiadCuba"]
[Black "IwkooO"]
[Result "1-0"]
[WhiteElo "2522"]
[BlackElo "2672"]
[TimeControl "180+1"]
[EndTime "8:50:47 PDT"]
[Termination "LiadCuba won by resignation"]

1. d4 {[%clk 0:03:00.9]} 1... Nf6 {[%clk 0:02:57.9]} 2. c4 {[%clk 0:03:00.9]}
2... e6 {[%clk 0:02:58]} 3. Nc3 {[%clk 0:03:01]} 3... a5 {[%clk 0:02:56.2]} 4.
e4 {[%clk 0:02:59.8]} 4... Bb4 {[%clk 0:02:55.3]} 5. f3 {[%clk 0:02:59.4]} 5...
d6 {[%clk 0:02:54.7]} 6. Bd3 {[%clk 0:02:55]} 6... Nc6 {[%clk 0:02:53.6]} 7. Ne2
{[%clk 0:02:55.2]} 7... e5 {[%clk 0:02:54]} 8. Be3 {[%clk 0:02:53]} 8... Bd7
{[%clk 0:02:44.5]} 9. a3 {[%clk 0:02:48.7]} 9... Bxc3+ {[%clk 0:02:41.1]} 10.
bxc3 {[%clk 0:02:49.6]} 10... b6 {[%clk 0:02:40.9]} 11. O-O {[%clk 0:02:48.3]}
11... O-O {[%clk 0:02:40.1]} 12. Ng3 {[%clk 0:02:42.1]} 12... Re8 {[%clk
0:02:32.4]} 13. c5 {[%clk 0:02:27.1]} 13... bxc5 {[%clk 0:02:30]} 14. dxc5
{[%clk 0:02:26.9]} 14... Be6 {[%clk 0:02:24.6]} 15. Bb5 {[%clk 0:02:23]} 15...
Qd7 {[%clk 0:02:11.1]} 16. Qa4 {[%clk 0:02:20.9]} 16... Nb8 {[%clk 0:01:59.2]}
17. Bxd7 {[%clk 0:02:17.6]} 17... Bxd7 {[%clk 0:01:59.9]} 18. Qb3 {[%clk
0:02:14.5]} 18... Nc6 {[%clk 0:01:59]} 19. Rab1 {[%clk 0:02:08.8]} 1-0